[Event "Late-Titled-Tuesday-Blitz-March-05-2024"]
[Site "Chess.com"]
[Date "2024.03.05"]
[Round "1"]
[White "rdarruda"]
[Black "DanielNaroditsky"]
[Result "0-1"]
[WhiteElo "2529"]
[BlackElo "3099"]
[TimeControl "180+1"]
[EndTime "14:07:26 PST"]
[Termination "DanielNaroditsky won on time"]

1. Nf3 {[%clk 0:02:56.2]} 1... Nf6 {[%clk 0:02:56.9]} 2. d4 {[%clk 0:02:56]}
2... g6 {[%clk 0:02:56.7]} 3. Nc3 {[%clk 0:02:55.9]} 3... d5 {[%clk 0:02:49.6]}
4. Bg5 {[%clk 0:02:55.5]} 4... Bg7 {[%clk 0:02:48.4]} 5. Bxf6 {[%clk 0:02:55.3]}
5... Bxf6 {[%clk 0:02:48.2]} 6. e4 {[%clk 0:02:55]} 6... dxe4 {[%clk 0:02:49.1]}
7. Nxe4 {[%clk 0:02:55.2]} 7... Bg7 {[%clk 0:02:50]} 8. Bc4 {[%clk 0:02:55]}
8... O-O {[%clk 0:02:47.3]} 9. O-O {[%clk 0:02:53.1]} 9... Nc6 {[%clk
0:02:43.6]} 10. c3 {[%clk 0:02:50.9]} 10... b6 {[%clk 0:02:22.3]} 11. Qe2 {[%clk
0:02:49.7]} 11... e6 {[%clk 0:02:20.5]} 12. Rad1 {[%clk 0:02:48.3]} 12... Ne7
{[%clk 0:02:17.6]} 13. Ne5 {[%clk 0:02:41.3]} 13... Nd5 {[%clk 0:02:04.9]} 14.
Rfe1 {[%clk 0:02:37.4]} 14... Bb7 {[%clk 0:02:04.6]} 15. g3 {[%clk 0:02:33.4]}
15... a6 {[%clk 0:02:01.3]} 16. a4 {[%clk 0:02:32.5]} 16... Qe7 {[%clk
0:01:49.9]} 17. h4 {[%clk 0:02:30.8]} 17... c5 {[%clk 0:01:42.5]} 18. Nf3 {[%clk
0:01:55]} 18... cxd4 {[%clk 0:01:18.8]} 19. Nxd4 {[%clk 0:01:55.9]} 19... Rfd8
{[%clk 0:01:07.8]} 20. Ng5 {[%clk 0:01:51.5]} 20... Re8 {[%clk 0:00:48.4]} 21.
Ndxe6 {[%clk 0:01:28]} 21... Qd7 {[%clk 0:00:31.4]} 22. Bxd5 {[%clk 0:00:26.7]}
22... Bxd5 {[%clk 0:00:32.3]} 23. Nf4 {[%clk 0:00:26.6]} 23... Rxe2 {[%clk
0:00:30.9]} 24. Rxe2 {[%clk 0:00:27]} 24... Qxa4 {[%clk 0:00:21.8]} 25. Rxd5
{[%clk 0:00:25.7]} 25... h6 {[%clk 0:00:21.5]} 26. Ne4 {[%clk 0:00:23.5]} 26...
Qc6 {[%clk 0:00:16.6]} 27. Red2 {[%clk 0:00:19.5]} 27... Re8 {[%clk 0:00:15.3]}
28. Nd6 {[%clk 0:00:18]} 28... Re1+ {[%clk 0:00:14.8]} 29. Kh2 {[%clk
0:00:18.7]} 29... Be5 {[%clk 0:00:11.7]} 30. Ng2 {[%clk 0:00:18.7]} 30... Re2
{[%clk 0:00:04.6]} 31. Rxe2 {[%clk 0:00:12.3]} 31... Qxd5 {[%clk 0:00:04.8]} 32.
Ne4 {[%clk 0:00:11]} 32... Kg7 {[%clk 0:00:04.7]} 33. f3 {[%clk 0:00:08]} 33...
Qb5 {[%clk 0:00:03.8]} 34. Rd2 {[%clk 0:00:07.7]} 34... Qc6 {[%clk 0:00:03.3]}
35. Ne3 {[%clk 0:00:07]} 35... f5 {[%clk 0:00:04]} 36. Nf2 {[%clk 0:00:02.1]}
36... Qxf3 {[%clk 0:00:04.4]} 37. Rd7+ {[%clk 0:00:02.4]} 37... Kf8 {[%clk
0:00:03.7]} 38. Ned1 {[%clk 0:00:02]} 38... Bxg3+ {[%clk 0:00:03.4]} 0-1

[Event "Late-Titled-Tuesday-Blitz-March-05-2024"]
[Site "Chess.com"]
[Date "2024.03.05"]
[Round "1"]
[White "Zhigalko_Sergei"]
[Black "Eliwood44"]
[Result "1-0"]
[WhiteElo "2894"]
[BlackElo "2503"]
[TimeControl "180+1"]
[EndTime "14:07:26 PST"]
[Termination "Zhigalko_Sergei won on time"]

1. e4 {[%clk 0:03:00.9]} 1... e5 {[%clk 0:02:55.7]} 2. Nf3 {[%clk 0:03:00.9]}
2... Nc6 {[%clk 0:02:56.3]} 3. Bc4 {[%clk 0:03:01.1]} 3... Nf6 {[%clk 0:02:56]}
4. d3 {[%clk 0:03:01.3]} 4... Bc5 {[%clk 0:02:56.4]} 5. O-O {[%clk 0:03:01.2]}
5... d6 {[%clk 0:02:56.2]} 6. Nbd2 {[%clk 0:03:01.7]} 6... a6 {[%clk 0:02:56.5]}
7. c3 {[%clk 0:03:00.7]} 7... h6 {[%clk 0:02:56.2]} 8. Bb3 {[%clk 0:03:00.8]}
8... O-O {[%clk 0:02:55.7]} 9. h3 {[%clk 0:02:59.6]} 9... Re8 {[%clk 0:02:55.2]}
10. Re1 {[%clk 0:02:59.9]} 10... Ba7 {[%clk 0:02:53.8]} 11. Nf1 {[%clk
0:02:59.6]} 11... Be6 {[%clk 0:02:39.9]} 12. Be3 {[%clk 0:02:59.4]} 12... d5
{[%clk 0:02:37.8]} 13. Bxa7 {[%clk 0:02:59]} 13... Rxa7 {[%clk 0:02:37.6]} 14.
exd5 {[%clk 0:02:37.6]} 14... Bxd5 {[%clk 0:02:27.9]} 15. Bxd5 {[%clk
0:02:37.4]} 15... Nxd5 {[%clk 0:02:25]} 16. Qb3 {[%clk 0:02:25.5]} 16... Nf4
{[%clk 0:02:19]} 17. Rad1 {[%clk 0:02:22.4]} 17... b5 {[%clk 0:02:13.6]} 18. Ng3
{[%clk 0:01:59.2]} 18... Ra8 {[%clk 0:01:57.6]} 19. Re4 {[%clk 0:01:31.8]} 19...
Qf6 {[%clk 0:01:19.4]} 20. Nh2 {[%clk 0:01:09.1]} 20... Rad8 {[%clk 0:00:52.8]}
21. Qc2 {[%clk 0:01:09.1]} 21... Ne7 {[%clk 0:00:46.4]} 22. Ng4 {[%clk
0:01:07.3]} 22... Qd6 {[%clk 0:00:35.7]} 23. Nxe5 {[%clk 0:01:04.2]} 23... Neg6
{[%clk 0:00:22.3]} 24. Nf3 {[%clk 0:00:15.6]} 24... Rxe4 {[%clk 0:00:19.6]} 25.
Nxe4 {[%clk 0:00:16.5]} 25... Qd5 {[%clk 0:00:14.2]} 26. d4 {[%clk 0:00:15.4]}
26... f5 {[%clk 0:00:13]} 27. Ned2 {[%clk 0:00:11.1]} 27... Kh8 {[%clk
0:00:12.1]} 28. Re1 {[%clk 0:00:10.7]} 28... Rf8 {[%clk 0:00:08]} 29. a3 {[%clk
0:00:10.4]} 29... c5 {[%clk 0:00:07.6]} 30. Qd1 {[%clk 0:00:06]} 30... cxd4
{[%clk 0:00:07.3]} 31. cxd4 {[%clk 0:00:06.9]} 31... Kh7 {[%clk 0:00:04.5]} 32.
Re3 {[%clk 0:00:06.5]} 32... Rd8 {[%clk 0:00:04.1]} 33. Qb3 {[%clk 0:00:05.6]}
33... Qb7 {[%clk 0:00:03.2]} 34. Qc2 {[%clk 0:00:04.6]} 34... Rxd4 {[%clk
0:00:02]} 35. Nf1 {[%clk 0:00:02.3]} 1-0

[Event "Late-Titled-Tuesday-Blitz-March-05-2024"]
[Site "Chess.com"]
[Date "2024.03.05"]
[Round "1"]
[White "Nick12772"]
[Black "chess94cu"]
[Result "0-1"]
[WhiteElo "2385"]
[BlackElo "2655"]
[TimeControl "180+1"]
[EndTime "14:07:30 PST"]
[Termination "chess94cu won on time"]

1. Nf3 {[%clk 0:03:00.9]} 1... Nf6 {[%clk 0:02:59.6]} 2. g3 {[%clk 0:03:00.6]}
2... b6 {[%clk 0:02:58.9]} 3. Bg2 {[%clk 0:02:56.3]} 3... Bb7 {[%clk 0:02:53.2]}
4. O-O {[%clk 0:02:55.9]} 4... e6 {[%clk 0:02:52]} 5. c4 {[%clk 0:02:55.9]} 5...
c5 {[%clk 0:02:50.2]} 6. Nc3 {[%clk 0:02:56.3]} 6... Be7 {[%clk 0:02:49.9]} 7.
b3 {[%clk 0:02:55.7]} 7... O-O {[%clk 0:02:49.6]} 8. Bb2 {[%clk 0:02:55.8]} 8...
d5 {[%clk 0:02:50.2]} 9. cxd5 {[%clk 0:02:54.8]} 9... Nxd5 {[%clk 0:02:51.1]}
10. Nxd5 {[%clk 0:02:54]} 10... Bxd5 {[%clk 0:02:50.6]} 11. d3 {[%clk
0:02:54.6]} 11... Nd7 {[%clk 0:02:49.2]} 12. Qc2 {[%clk 0:02:54.1]} 12... Bf6
{[%clk 0:02:47.9]} 13. Rac1 {[%clk 0:02:53.7]} 13... Rc8 {[%clk 0:02:44.5]} 14.
Qb1 {[%clk 0:02:53.4]} 14... Qe7 {[%clk 0:02:43.1]} 15. Qa1 {[%clk 0:02:53.4]}
15... Bxb2 {[%clk 0:02:37.9]} 16. Qxb2 {[%clk 0:02:54.3]} 16... Rfd8 {[%clk
0:02:37.2]} 17. Rfd1 {[%clk 0:02:54.1]} 17... h6 {[%clk 0:02:33.7]} 18. h3
{[%clk 0:02:40.3]} 18... e5 {[%clk 0:02:30.7]} 19. Kh2 {[%clk 0:02:36.8]} 19...
Re8 {[%clk 0:02:11.2]} 20. Re1 {[%clk 0:02:35.3]} 20... Nf6 {[%clk 0:02:10.1]}
21. Rcd1 {[%clk 0:02:32.8]} 21... Rcd8 {[%clk 0:02:05.8]} 22. Kg1 {[%clk
0:02:20.6]} 22... Bb7 {[%clk 0:02:05.2]} 23. Kh2 {[%clk 0:02:20.3]} 23... h5
{[%clk 0:01:54.2]} 24. h4 {[%clk 0:02:13.6]} 24... Ng4+ {[%clk 0:01:53.4]} 25.
Kg1 {[%clk 0:02:14.3]} 25... e4 {[%clk 0:01:51.2]} 26. dxe4 {[%clk 0:02:14]}
26... Bxe4 {[%clk 0:01:52.1]} 27. Qc3 {[%clk 0:01:49.9]} 27... a5 {[%clk
0:01:49]} 28. Nh2 {[%clk 0:01:28.1]} 28... Bxg2 {[%clk 0:01:42.2]} 29. Kxg2
{[%clk 0:01:27.6]} 29... Rxd1 {[%clk 0:01:41.5]} 30. Rxd1 {[%clk 0:01:26.3]}
30... Qxe2 {[%clk 0:01:35.3]} 31. Rd2 {[%clk 0:01:18.7]} 31... Qe6 {[%clk
0:00:57.4]} 32. Nxg4 {[%clk 0:01:12.9]} 32... hxg4 {[%clk 0:00:58.3]} 33. Kh2
{[%clk 0:01:06]} 33... Qf5 {[%clk 0:00:57.7]} 34. Qc2 {[%clk 0:01:02.6]} 34...
Qf3 {[%clk 0:00:55]} 35. Qd1 {[%clk 0:00:32.2]} 35... Qxd1 {[%clk 0:00:54.2]}
36. Rxd1 {[%clk 0:00:33.1]} 36... Re2 {[%clk 0:00:54.1]} 37. Kg2 {[%clk
0:00:30.9]} 37... Rxa2 {[%clk 0:00:53.9]} 38. Rd6 {[%clk 0:00:26.1]} 38... b5
{[%clk 0:00:53.4]} 39. Rc6 {[%clk 0:00:15.7]} 39... Rc2 {[%clk 0:00:52.5]} 40.
Ra6 {[%clk 0:00:15.4]} 40... Rc3 {[%clk 0:00:51.6]} 41. Rxa5 {[%clk 0:00:05]}
41... Rxb3 {[%clk 0:00:51.9]} 42. Ra8+ {[%clk 0:00:05.7]} 42... Kh7 {[%clk
0:00:51.5]} 43. Rc8 {[%clk 0:00:03.7]} 43... c4 {[%clk 0:00:51.1]} 44. Rc5
{[%clk 0:00:03.8]} 44... f6 {[%clk 0:00:45.3]} 45. h5 {[%clk 0:00:01.9]} 45...
Kg8 {[%clk 0:00:44.7]} 46. Rc6 {[%clk 0:00:01.6]} 46... c3 {[%clk 0:00:40.9]}
47. h6 {[%clk 0:00:01.8]} 47... b4 {[%clk 0:00:38.6]} 48. hxg7 {[%clk
0:00:01.7]} 48... Kxg7 {[%clk 0:00:38.5]} 49. Rc7+ {[%clk 0:00:01.8]} 49... Kg6
{[%clk 0:00:38.6]} 50. Rc4 {[%clk 0:00:02]} 50... f5 {[%clk 0:00:37.2]} 51. Rc6+
{[%clk 0:00:02.1]} 51... Kf7 {[%clk 0:00:37.5]} 0-1

[Event "Late-Titled-Tuesday-Blitz-March-05-2024"]
[Site "Chess.com"]
[Date "2024.03.05"]
[Round "1"]
[White "giovannibrandao7"]
[Black "ValeriyGrinev"]
[Result "1-0"]
[WhiteElo "2229"]
[BlackElo "2560"]
[TimeControl "180+1"]
[EndTime "14:07:30 PST"]
[Termination "giovannibrandao7 won by resignation"]

1. e4 {[%clk 0:02:59.8]} 1... c5 {[%clk 0:02:59.5]} 2. Nf3 {[%clk 0:03:00.3]}
2... e6 {[%clk 0:02:59.5]} 3. d4 {[%clk 0:02:59.9]} 3... cxd4 {[%clk 0:03:00.4]}
4. Nxd4 {[%clk 0:03:00.5]} 4... a6 {[%clk 0:03:00.7]} 5. Bd3 {[%clk 0:02:59.4]}
5... Bc5 {[%clk 0:02:59.6]} 6. Nb3 {[%clk 0:02:56.3]} 6... Ba7 {[%clk
0:03:00.1]} 7. O-O {[%clk 0:02:54.8]} 7... d6 {[%clk 0:03:00.7]} 8. Bf4 {[%clk
0:02:48.1]} 8... Nf6 {[%clk 0:02:59.1]} 9. N1d2 {[%clk 0:02:48.1]} 9... O-O
{[%clk 0:02:55.1]} 10. a4 {[%clk 0:02:48.1]} 10... Nc6 {[%clk 0:02:50.6]} 11. h3
{[%clk 0:02:43.3]} 11... h6 {[%clk 0:02:48.9]} 12. Nc4 {[%clk 0:02:38.6]} 12...
e5 {[%clk 0:02:49]} 13. Be3 {[%clk 0:02:26.1]} 13... Be6 {[%clk 0:02:45.7]} 14.
Bxa7 {[%clk 0:02:16.4]} 14... Rxa7 {[%clk 0:02:46.6]} 15. a5 {[%clk 0:02:17.2]}
15... Nxe4 {[%clk 0:02:38.4]} 16. Nxe5 {[%clk 0:02:02.4]} 16... dxe5 {[%clk
0:02:18.2]} 17. Bxe4 {[%clk 0:02:01.2]} 17... Bxb3 {[%clk 0:02:18.9]} 18. cxb3
{[%clk 0:01:50.8]} 18... Nd4 {[%clk 0:02:19.5]} 19. Bd3 {[%clk 0:01:42.5]} 19...
b5 {[%clk 0:02:17.6]} 20. axb6 {[%clk 0:01:39.3]} 20... Qxb6 {[%clk 0:02:17.2]}
21. Bc4 {[%clk 0:01:40]} 21... a5 {[%clk 0:02:13.5]} 22. Qd3 {[%clk 0:01:36.1]}
22... Rb8 {[%clk 0:02:12.6]} 23. Rfe1 {[%clk 0:01:27]} 23... Qc5 {[%clk
0:02:00.4]} 24. Qe3 {[%clk 0:01:13.1]} 24... Re8 {[%clk 0:01:49.1]} 25. Kh1
{[%clk 0:00:59.3]} 25... Qc7 {[%clk 0:01:43.3]} 26. Rac1 {[%clk 0:00:44.2]}
26... Kf8 {[%clk 0:01:21.7]} 27. f4 {[%clk 0:00:33.6]} 27... f6 {[%clk
0:01:01.3]} 28. Bb5 {[%clk 0:00:20.6]} 28... Nxb5 {[%clk 0:00:59]} 29. Rxc7
{[%clk 0:00:19.5]} 29... Rxc7 {[%clk 0:00:59.9]} 30. Qb6 {[%clk 0:00:19]} 30...
e4 {[%clk 0:00:23.5]} 31. Qxb5 {[%clk 0:00:18]} 31... Rce7 {[%clk 0:00:22.9]}
32. Re3 {[%clk 0:00:15.6]} 32... Ra8 {[%clk 0:00:19.2]} 33. Qc5 {[%clk
0:00:15.2]} 33... f5 {[%clk 0:00:13.3]} 34. Qxf5+ {[%clk 0:00:13]} 34... Ke8
{[%clk 0:00:13.6]} 35. Rxe4 {[%clk 0:00:13.2]} 35... Rd8 {[%clk 0:00:13.4]} 36.
Rxe7+ {[%clk 0:00:12.9]} 36... Kxe7 {[%clk 0:00:14.3]} 37. Qe5+ {[%clk
0:00:13.6]} 37... Kf7 {[%clk 0:00:13.7]} 38. Qxa5 {[%clk 0:00:12.6]} 38... Rd6
{[%clk 0:00:13.9]} 39. b4 {[%clk 0:00:12]} 39... Rf6 {[%clk 0:00:13.2]} 40. Qe5
{[%clk 0:00:11.6]} 40... g5 {[%clk 0:00:12.2]} 41. fxg5 {[%clk 0:00:09.9]} 41...
hxg5 {[%clk 0:00:13.1]} 42. b5 {[%clk 0:00:10.2]} 42... g4 {[%clk 0:00:12.7]}
43. b6 {[%clk 0:00:09.8]} 43... g3 {[%clk 0:00:12.4]} 44. Qxf6+ {[%clk
0:00:08.1]} 44... Kxf6 {[%clk 0:00:12.5]} 45. b7 {[%clk 0:00:08.5]} 1-0

[Event "Late-Titled-Tuesday-Blitz-March-05-2024"]
[Site "Chess.com"]
[Date "2024.03.05"]
[Round "1"]
[White "norwaytoadog"]
[Black "dennisodessa"]
[Result "1-0"]
[WhiteElo "2271"]
[BlackElo "2574"]
[TimeControl "180+1"]
[EndTime "14:07:31 PST"]
[Termination "norwaytoadog won on time"]

1. e4 {[%clk 0:02:59.1]} 1... e6 {[%clk 0:02:49.2]} 2. d4 {[%clk 0:02:58.8]}
2... d5 {[%clk 0:02:49.7]} 3. Nc3 {[%clk 0:02:59.2]} 3... Bb4 {[%clk 0:02:50.3]}
4. e5 {[%clk 0:02:59.2]} 4... c5 {[%clk 0:02:51]} 5. a3 {[%clk 0:02:59.5]} 5...
Ba5 {[%clk 0:02:51.7]} 6. b4 {[%clk 0:02:58.2]} 6... cxd4 {[%clk 0:02:52.1]} 7.
Nb5 {[%clk 0:02:57.9]} 7... Bc7 {[%clk 0:02:52.8]} 8. Nf3 {[%clk 0:02:53.7]}
8... Ne7 {[%clk 0:02:45.4]} 9. Nxc7+ {[%clk 0:02:43.4]} 9... Qxc7 {[%clk
0:02:44.1]} 10. Bd3 {[%clk 0:02:43.9]} 10... Ng6 {[%clk 0:02:40.5]} 11. O-O
{[%clk 0:02:43.3]} 11... Nxe5 {[%clk 0:02:34.6]} 12. Bf4 {[%clk 0:02:38.7]}
12... Nxf3+ {[%clk 0:02:33.7]} 13. Qxf3 {[%clk 0:02:38.5]} 13... Qe7 {[%clk
0:02:31.3]} 14. Qg3 {[%clk 0:02:35.7]} 14... Nc6 {[%clk 0:02:23.9]} 15. Qxg7
{[%clk 0:02:34.1]} 15... Qf8 {[%clk 0:02:24.5]} 16. Qf6 {[%clk 0:02:27.6]} 16...
Rg8 {[%clk 0:02:02.3]} 17. Bxh7 {[%clk 0:02:01.8]} 17... Rg4 {[%clk 0:01:50.3]}
18. Bh6 {[%clk 0:01:41.1]} 18... Qe7 {[%clk 0:01:48.6]} 19. Qh8+ {[%clk
0:01:40.2]} 19... Kd7 {[%clk 0:01:48.1]} 20. b5 {[%clk 0:01:34.3]} 20... Na5
{[%clk 0:01:42.5]} 21. g3 {[%clk 0:01:25.9]} 21... b6 {[%clk 0:01:21.6]} 22. f3
{[%clk 0:01:17.3]} 22... Bb7 {[%clk 0:01:20.4]} 23. Qxa8 {[%clk 0:01:06.6]}
23... Bxa8 {[%clk 0:01:21.3]} 24. fxg4 {[%clk 0:01:05.7]} 24... f6 {[%clk
0:01:10.7]} 25. Bd3 {[%clk 0:00:58.6]} 25... Nc4 {[%clk 0:01:10.6]} 26. Rae1
{[%clk 0:00:51.3]} 26... Ne5 {[%clk 0:00:54]} 27. Bd2 {[%clk 0:00:30.9]} 27...
Nxg4 {[%clk 0:00:49.4]} 28. Rf4 {[%clk 0:00:28.8]} 28... Ne5 {[%clk 0:00:45.2]}
29. Bb4 {[%clk 0:00:25]} 29... Qg7 {[%clk 0:00:42.7]} 30. Ref1 {[%clk
0:00:18.9]} 30... f5 {[%clk 0:00:38.3]} 31. Rh4 {[%clk 0:00:14.9]} 31... Bb7
{[%clk 0:00:23]} 32. Rff4 {[%clk 0:00:13]} 32... Nxd3 {[%clk 0:00:16.4]} 33.
cxd3 {[%clk 0:00:13.5]} 33... e5 {[%clk 0:00:17.2]} 34. Rxf5 {[%clk 0:00:12.2]}
34... e4 {[%clk 0:00:18.1]} 35. Rfh5 {[%clk 0:00:10.4]} 35... Qf6 {[%clk
0:00:03]} 36. Rh7+ {[%clk 0:00:08.4]} 36... Ke8 {[%clk 0:00:03.3]} 37. Rf4
{[%clk 0:00:08]} 1-0

[Event "Late-Titled-Tuesday-Blitz-March-05-2024"]
[Site "Chess.com"]
[Date "2024.03.05"]
[Round "1"]
[White "JSPrepz"]
[Black "Road2GM3000"]
[Result "1-0"]
[WhiteElo "2840"]
[BlackElo "2490"]
[TimeControl "180+1"]
[EndTime "14:07:33 PST"]
[Termination "JSPrepz won on time"]

1. e4 {[%clk 0:03:00.9]} 1... c5 {[%clk 0:02:59.1]} 2. Nf3 {[%clk 0:03:00.6]}
2... d6 {[%clk 0:02:59.6]} 3. Nc3 {[%clk 0:03:00.6]} 3... Nf6 {[%clk 0:02:59.6]}
4. e5 {[%clk 0:03:01.1]} 4... dxe5 {[%clk 0:02:59.7]} 5. Nxe5 {[%clk 0:03:02]}
5... e6 {[%clk 0:02:58.5]} 6. Bb5+ {[%clk 0:03:01.2]} 6... Bd7 {[%clk
0:02:57.7]} 7. Nxd7 {[%clk 0:02:52]} 7... Nbxd7 {[%clk 0:02:58.6]} 8. d4 {[%clk
0:02:51.6]} 8... a6 {[%clk 0:02:57]} 9. Be2 {[%clk 0:02:50.7]} 9... cxd4 {[%clk
0:02:56]} 10. Qxd4 {[%clk 0:02:50.6]} 10... Bc5 {[%clk 0:02:56.1]} 11. Qh4
{[%clk 0:02:50.5]} 11... O-O {[%clk 0:02:38.1]} 12. O-O {[%clk 0:02:50.2]} 12...
Ne5 {[%clk 0:02:32.6]} 13. Qg3 {[%clk 0:02:41.4]} 13... Ng6 {[%clk 0:02:27.2]}
14. Rd1 {[%clk 0:02:40.2]} 14... Qb8 {[%clk 0:02:25.6]} 15. Qxb8 {[%clk
0:02:32.4]} 15... Raxb8 {[%clk 0:02:24.8]} 16. Bg5 {[%clk 0:02:33.3]} 16... Rfd8
{[%clk 0:02:22.7]} 17. Rxd8+ {[%clk 0:02:25.3]} 17... Rxd8 {[%clk 0:02:22.5]}
18. Ne4 {[%clk 0:02:24.4]} 18... Be7 {[%clk 0:02:20.2]} 19. Nxf6+ {[%clk
0:02:24.6]} 19... Bxf6 {[%clk 0:02:19.4]} 20. Bxf6 {[%clk 0:02:24.9]} 20... gxf6
{[%clk 0:02:19.7]} 21. Rd1 {[%clk 0:02:21.8]} 21... Rxd1+ {[%clk 0:02:18.5]} 22.
Bxd1 {[%clk 0:02:22.7]} 22... Kf8 {[%clk 0:02:13.3]} 23. g3 {[%clk 0:02:18.2]}
23... Ke7 {[%clk 0:02:11.4]} 24. Kg2 {[%clk 0:02:16.7]} 24... Kd6 {[%clk
0:02:02.9]} 25. Kf3 {[%clk 0:02:17]} 25... f5 {[%clk 0:01:58.8]} 26. Be2 {[%clk
0:02:15.5]} 26... e5 {[%clk 0:01:55]} 27. Ke3 {[%clk 0:02:13.9]} 27... a5 {[%clk
0:01:49.2]} 28. Bc4 {[%clk 0:02:11.8]} 28... f6 {[%clk 0:01:46.9]} 29. Bg8
{[%clk 0:02:11.4]} 29... h6 {[%clk 0:01:44.4]} 30. Bf7 {[%clk 0:02:10]} 30...
Ne7 {[%clk 0:01:37.9]} 31. Kf3 {[%clk 0:02:10.2]} 31... Nc6 {[%clk 0:01:20.8]}
32. Ke3 {[%clk 0:02:01.2]} 32... b5 {[%clk 0:01:15.1]} 33. Be8 {[%clk
0:01:55.8]} 33... b4 {[%clk 0:01:05.6]} 34. Bxc6 {[%clk 0:00:54.2]} 34... Kxc6
{[%clk 0:01:04.5]} 35. g4 {[%clk 0:00:40.9]} 35... fxg4 {[%clk 0:00:47.2]} 36.
Ke4 {[%clk 0:00:41.8]} 36... a4 {[%clk 0:00:05]} 37. Kf5 {[%clk 0:00:37.3]}
37... Kd5 {[%clk 0:00:01.7]} 38. Kxf6 {[%clk 0:00:17.1]} 38... Ke4 {[%clk
0:00:02]} 39. Ke6 {[%clk 0:00:07.2]} 39... h5 {[%clk 0:00:01.4]} 40. Kf6 {[%clk
0:00:04.5]} 40... h4 {[%clk 0:00:01.3]} 41. Kg5 {[%clk 0:00:05.4]} 41... Kf3
{[%clk 0:00:01.1]} 42. c4 {[%clk 0:00:04.3]} 1-0

[Event "Late-Titled-Tuesday-Blitz-March-05-2024"]
[Site "Chess.com"]
[Date "2024.03.05"]
[Round "1"]
[White "Quattroporte300"]
[Black "Sokoloco"]
[Result "1-0"]
[WhiteElo "2467"]
[BlackElo "2755"]
[TimeControl "180+1"]
[EndTime "14:07:33 PST"]
[Termination "Quattroporte300 won by resignation"]

1. e4 {[%clk 0:02:57.2]} 1... d6 {[%clk 0:03:00]} 2. d4 {[%clk 0:02:57]} 2... g6
{[%clk 0:03:00.6]} 3. Bd3 {[%clk 0:02:54.6]} 3... Bg7 {[%clk 0:03:00.6]} 4. Nf3
{[%clk 0:02:55.3]} 4... c5 {[%clk 0:02:49.5]} 5. d5 {[%clk 0:02:54.3]} 5... Bg4
{[%clk 0:02:45]} 6. h3 {[%clk 0:02:52.6]} 6... Bxf3 {[%clk 0:02:44.8]} 7. Qxf3
{[%clk 0:02:52.3]} 7... Nd7 {[%clk 0:02:44.7]} 8. Qe2 {[%clk 0:02:49.8]} 8... a6
{[%clk 0:02:40.5]} 9. c3 {[%clk 0:02:45.9]} 9... b5 {[%clk 0:02:36.6]} 10. O-O
{[%clk 0:02:43.5]} 10... Ngf6 {[%clk 0:02:33.8]} 11. a4 {[%clk 0:02:42.6]} 11...
c4 {[%clk 0:02:29]} 12. Bc2 {[%clk 0:02:41.9]} 12... O-O {[%clk 0:02:28.8]} 13.
Be3 {[%clk 0:02:31.5]} 13... Re8 {[%clk 0:02:28.5]} 14. Nd2 {[%clk 0:02:28.7]}
14... e6 {[%clk 0:02:29.1]} 15. dxe6 {[%clk 0:02:22.6]} 15... Rxe6 {[%clk
0:02:30]} 16. Bd4 {[%clk 0:02:17.5]} 16... Nc5 {[%clk 0:01:49.5]} 17. axb5
{[%clk 0:02:09.1]} 17... axb5 {[%clk 0:01:47.9]} 18. Qf3 {[%clk 0:01:52.5]}
18... Ncd7 {[%clk 0:01:33.7]} 19. b3 {[%clk 0:01:43.3]} 19... cxb3 {[%clk
0:01:19.4]} 20. Bxb3 {[%clk 0:01:42.3]} 20... Re8 {[%clk 0:01:19.7]} 21. Rfd1
{[%clk 0:01:35.6]} 21... Qc7 {[%clk 0:01:12.6]} 22. Rxa8 {[%clk 0:01:25.9]}
22... Rxa8 {[%clk 0:01:13.5]} 23. e5 {[%clk 0:01:26.4]} 23... Re8 {[%clk
0:01:02.4]} 24. exf6 {[%clk 0:01:25.9]} 24... Bh6 {[%clk 0:01:03.1]} 25. Ne4
{[%clk 0:01:22.8]} 25... Qc6 {[%clk 0:01:03.2]} 26. Ng3 {[%clk 0:01:11.6]} 26...
Qc7 {[%clk 0:00:48.4]} 27. Qd5 {[%clk 0:01:08.1]} 27... Rf8 {[%clk 0:00:48.5]}
28. Re1 {[%clk 0:01:03.9]} 28... Ne5 {[%clk 0:00:28.2]} 29. Bxe5 {[%clk
0:00:58.1]} 29... dxe5 {[%clk 0:00:29.1]} 30. Qxe5 {[%clk 0:00:57.3]} 30... Qc6
{[%clk 0:00:29.8]} 31. Qd4 {[%clk 0:00:44.3]} 31... Bg5 {[%clk 0:00:23]} 32. Ne4
{[%clk 0:00:40.7]} 32... Re8 {[%clk 0:00:21.2]} 33. Qd5 {[%clk 0:00:37.2]} 33...
Qxd5 {[%clk 0:00:17.9]} 34. Bxd5 {[%clk 0:00:36.8]} 34... Bf4 {[%clk 0:00:15.1]}
35. Rb1 {[%clk 0:00:36.6]} 35... h5 {[%clk 0:00:11.2]} 36. Rxb5 {[%clk
0:00:36.4]} 36... Re5 {[%clk 0:00:11.6]} 37. g3 {[%clk 0:00:34.2]} 37... Kh7
{[%clk 0:00:03.9]} 38. gxf4 {[%clk 0:00:33.5]} 38... Rf5 {[%clk 0:00:04.6]} 39.
c4 {[%clk 0:00:32.3]} 39... Rxf4 {[%clk 0:00:04.6]} 40. Ng5+ {[%clk 0:00:32.1]}
40... Kh6 {[%clk 0:00:04.7]} 41. Nxf7+ {[%clk 0:00:32.6]} 41... Kh7 {[%clk
0:00:05.4]} 42. Rb6 {[%clk 0:00:31.7]} 42... h4 {[%clk 0:00:04.1]} 43. Ng5+
{[%clk 0:00:30.9]} 43... Kh6 {[%clk 0:00:04.3]} 44. Ne4 {[%clk 0:00:27.3]} 44...
Kh5 {[%clk 0:00:03.1]} 45. f7 {[%clk 0:00:26.6]} 45... Kh6 {[%clk 0:00:03.1]}
46. Rb8 {[%clk 0:00:25.3]} 46... Kg7 {[%clk 0:00:03]} 47. f8=Q+ {[%clk
0:00:24.8]} 47... Rxf8 {[%clk 0:00:02.9]} 48. Rxf8 {[%clk 0:00:25.5]} 48... Kxf8
{[%clk 0:00:03.8]} 49. Kg2 {[%clk 0:00:25.8]} 1-0